[Event "December 19 Late 2023"]
[Site "https://www.chess.com"]
[Date "2023.12.19"]
[Round "11"]
[White "Melikhov, Evgeny V."]
[Black "Hajiyev, Kanan"]
[Result "0-1"]
[Board "55"]
[TimeControl "180+1"]
[WhiteFideId "4122046"]
[BlackFideId "13404148"]
[WhiteElo "2165"]
[BlackElo "2102"]
[WhiteTeam "GRE"]
[BlackTeam "AZE"]
[WhiteClock "0:00:00"]
[BlackClock "0:00:11"]

1. d4 {[%clk 0:03:00]}  c6 {[%clk 0:03:00]} 2. c4 {[%clk 0:03:00]}  d5 {[%clk 0:03:01]} 3. Nc3 {[%clk 0:03:00]}  a6 {[%clk 0:03:02]} 4. c5 {[%clk 0:02:56]}  Nf6 {[%clk 0:03:01]} 5. f4 {[%clk 0:02:49]}  b6 {[%clk 0:02:41]} 6. cxb6 {[%clk 0:02:47]}  Qxb6 {[%clk 0:02:41]} 7. Nf3 {[%clk 0:02:46]}  Bg4 {[%clk 0:02:40]} 8. e3 {[%clk 0:02:46]}  e6 {[%clk 0:02:39]} 9. Bd3 {[%clk 0:02:41]}  Bd6 {[%clk 0:02:38]} 10. O-O {[%clk 0:02:40]}  O-O {[%clk 0:02:39]} 11. h3 {[%clk 0:02:39]}  Bxf3 {[%clk 0:02:38]} 12. Qxf3 {[%clk 0:02:34]}  c5 {[%clk 0:02:34]} 13. Na4 {[%clk 0:02:33]}  Qa7 {[%clk 0:02:33]} 14. Nxc5 {[%clk 0:02:33]}  Bxc5 {[%clk 0:02:34]} 15. dxc5 {[%clk 0:02:33]}  Qxc5 {[%clk 0:02:35]} 16. Bd2 {[%clk 0:02:28]}  Nc6 {[%clk 0:02:33]} 17. Rac1 {[%clk 0:02:15]}  Qb6 {[%clk 0:02:33]} 18. b3 {[%clk 0:01:40]}  Nb4 {[%clk 0:02:28]} 19. Bb1 {[%clk 0:01:37]}  Rfc8 {[%clk 0:02:29]} 20. Kh2 {[%clk 0:01:29]}  a5 {[%clk 0:02:26]} 21. Bc3 {[%clk 0:01:11]}  Qd8 {[%clk 0:02:23]} 22. Be5 {[%clk 0:01:00]}  Nc6 {[%clk 0:02:13]} 23. Bc3 {[%clk 0:00:48]}  Rab8 {[%clk 0:02:06]} 24. Rfd1 {[%clk 0:00:46]}  Qe7 {[%clk 0:02:04]} 25. e4 {[%clk 0:00:36]}  dxe4 {[%clk 0:02:00]} 26. Bxe4 {[%clk 0:00:36]}  Nxe4 {[%clk 0:01:59]} 27. Qxe4 {[%clk 0:00:36]}  Nb4 {[%clk 0:01:56]} 28. Bb2 {[%clk 0:00:29]}  Nxa2 {[%clk 0:01:43]} 29. Rxc8+ {[%clk 0:00:27]}  Rxc8 {[%clk 0:01:44]} 30. Qe5 {[%clk 0:00:27]}  Qf6 {[%clk 0:01:23]} 31. Qxa5 {[%clk 0:00:20]}  Qxf4+ {[%clk 0:01:17]} 32. Kh1 {[%clk 0:00:20]}  h5 {[%clk 0:00:36]} 33. Qxa2 {[%clk 0:00:18]}  Qf2 {[%clk 0:00:36]} 34. Qb1 {[%clk 0:00:16]}  Rc2 {[%clk 0:00:36]} 35. Rd8+ {[%clk 0:00:14]}  Kh7 {[%clk 0:00:34]} 36. Qg1 {[%clk 0:00:12]}  Qxg1+ {[%clk 0:00:31]} 37. Kxg1 {[%clk 0:00:12]}  Rxb2 {[%clk 0:00:32]} 38. Rb8 {[%clk 0:00:12]}  h4 {[%clk 0:00:31]} 39. b4 {[%clk 0:00:12]}  g5 {[%clk 0:00:31]} 40. b5 {[%clk 0:00:11]}  e5 {[%clk 0:00:29]} 41. b6 {[%clk 0:00:10]}  Kg6 {[%clk 0:00:29]} 42. b7 {[%clk 0:00:09]}  Kf5 {[%clk 0:00:30]} 43. Kf1 {[%clk 0:00:09]}  Kf4 {[%clk 0:00:29]} 44. Ke1 {[%clk 0:00:09]}  e4 {[%clk 0:00:30]} 45. Kd1 {[%clk 0:00:08]}  e3 {[%clk 0:00:31]} 46. Kc1 {[%clk 0:00:08]}  Rb6 {[%clk 0:00:25]} 47. Kd1 {[%clk 0:00:07]}  Rb5 {[%clk 0:00:19]} 48. Ke2 {[%clk 0:00:07]}  Rb2+ {[%clk 0:00:19]} 49. Kd1 {[%clk 0:00:06]}  f5 {[%clk 0:00:17]} 50. Ke1 {[%clk 0:00:06]}  Rb1+ {[%clk 0:00:15]} 51. Ke2 {[%clk 0:00:06]}  Rb2+ {[%clk 0:00:16]} 52. Ke1 {[%clk 0:00:06]}  Kg3 {[%clk 0:00:14]} 53. Rg8 {[%clk 0:00:04]}  Rxb7 {[%clk 0:00:13]} 54. Rxg5+ {[%clk 0:00:04]}  Kf4 {[%clk 0:00:14]} 55. Rh5 {[%clk 0:00:03]}  Rb1+ {[%clk 0:00:15]} 56. Ke2 {[%clk 0:00:03]}  Rb2+ {[%clk 0:00:16]} 57. Kf1 {[%clk 0:00:02]}  Kg3 {[%clk 0:00:15]} 58. Rg5+ {[%clk 0:00:02]}  Kh2 {[%clk 0:00:15]} 59. Rxf5 {[%clk 0:00:02]}  Rxg2 {[%clk 0:00:14]} 60. Re5 {[%clk 0:00:02]}  Rg3 {[%clk 0:00:10]} 61. Ke2 {[%clk 0:00:00]}  Kxh3 {[%clk 0:00:11]} 0-1

[Event "December 19 Late 2023"]
[Site "https://www.chess.com"]
[Date "2023.12.19"]
[Round "11"]
[White "Ambartsumova, Karina"]
[Black "Sivakumar, Shaashwath"]
[Result "0-1"]
[Board "56"]
[TimeControl "180+1"]
[WhiteFideId "4166299"]
[BlackFideId "30912156"]
[WhiteElo "2240"]
[BlackElo "2137"]
[WhiteTeam "RUS"]
[BlackTeam "USA"]
[WhiteClock "0:00:00"]
[BlackClock "0:00:31"]

1. d4 {[%clk 0:03:00]}  d5 {[%clk 0:02:57]} 2. c4 {[%clk 0:03:01]}  c6 {[%clk 0:02:57]} 3. Nf3 {[%clk 0:03:01]}  Nf6 {[%clk 0:02:57]} 4. g3 {[%clk 0:03:01]}  Bf5 {[%clk 0:02:56]} 5. Qb3 {[%clk 0:03:00]}  Qb6 {[%clk 0:02:55]} 6. Nc3 {[%clk 0:03:00]}  e6 {[%clk 0:02:54]} 7. c5 {[%clk 0:03:01]}  Qxb3 {[%clk 0:02:54]} 8. axb3 {[%clk 0:03:02]}  a6 {[%clk 0:02:46]} 9. Bf4 {[%clk 0:02:53]}  Nbd7 {[%clk 0:02:44]} 10. b4 {[%clk 0:02:52]}  Ne4 {[%clk 0:02:41]} 11. Nd2 {[%clk 0:02:26]}  Nxc3 {[%clk 0:02:34]} 12. bxc3 {[%clk 0:02:25]}  Be7 {[%clk 0:02:32]} 13. Nb3 {[%clk 0:02:24]}  Bd8 {[%clk 0:02:27]} 14. e3 {[%clk 0:02:15]}  g5 {[%clk 0:02:18]} 15. Bd6 {[%clk 0:02:15]}  Be7 {[%clk 0:02:18]} 16. Bxe7 {[%clk 0:02:04]}  Kxe7 {[%clk 0:02:18]} 17. f3 {[%clk 0:02:01]}  g4 {[%clk 0:02:12]} 18. f4 {[%clk 0:01:58]}  h5 {[%clk 0:02:13]} 19. Be2 {[%clk 0:01:52]}  Be4 {[%clk 0:02:08]} 20. Rg1 {[%clk 0:01:50]}  Rag8 {[%clk 0:02:08]} 21. Na5 {[%clk 0:01:48]}  Rb8 {[%clk 0:02:05]} 22. Kf2 {[%clk 0:01:35]}  h4 {[%clk 0:01:58]} 23. Raf1 {[%clk 0:01:03]}  hxg3+ {[%clk 0:01:56]} 24. hxg3 {[%clk 0:01:04]}  Rh2+ {[%clk 0:01:53]} 25. Ke1 {[%clk 0:01:04]}  f5 {[%clk 0:01:52]} 26. Rf2 {[%clk 0:01:03]}  Rh3 {[%clk 0:01:48]} 27. Bf1 {[%clk 0:01:02]}  Rh6 {[%clk 0:01:46]} 28. Ra2 {[%clk 0:01:00]}  Kd8 {[%clk 0:01:43]} 29. c4 {[%clk 0:00:55]}  Kc7 {[%clk 0:01:38]} 30. b5 {[%clk 0:00:55]}  axb5 {[%clk 0:01:36]} 31. cxb5 {[%clk 0:00:55]}  Rbh8 {[%clk 0:01:32]} 32. b6+ {[%clk 0:00:37]}  Kc8 {[%clk 0:01:30]} 33. Nxb7 {[%clk 0:00:23]}  Kxb7 {[%clk 0:01:28]} 34. Ra7+ {[%clk 0:00:24]}  Kc8 {[%clk 0:01:27]} 35. Rc7+ {[%clk 0:00:20]}  Kd8 {[%clk 0:01:26]} 36. Rxc6 {[%clk 0:00:21]}  Nb8 {[%clk 0:01:16]} 37. Rd6+ {[%clk 0:00:21]}  Ke7 {[%clk 0:01:15]} 38. Bb5 {[%clk 0:00:21]}  Rh2 {[%clk 0:01:09]} 39. b7 {[%clk 0:00:20]}  Rb2 {[%clk 0:01:07]} 40. Rb6 {[%clk 0:00:19]}  Nd7 {[%clk 0:00:59]} 41. c6 {[%clk 0:00:05]}  Nxb6 {[%clk 0:00:53]} 42. c7 {[%clk 0:00:05]}  Rhh2 {[%clk 0:00:49]} 43. Ba4 {[%clk 0:00:00]}  Bf3 {[%clk 0:00:31]} 0-1

[Event "December 19 Late 2023"]
[Site "https://www.chess.com"]
[Date "2023.12.19"]
[Round "11"]
[White "Blanco Diez, David"]
[Black "Korchynskyi, Mykola"]
[Result "0-1"]
[Board "59"]
[TimeControl "180+1"]
[WhiteFideId "32032927"]
[BlackFideId "34138005"]
[WhiteElo "2170"]
[BlackElo "2007"]
[WhiteTeam "ESP"]
[BlackTeam "UKR"]
[WhiteClock "0:00:00"]
[BlackClock "0:00:32"]

1. Nf3 {[%clk 0:02:55]}  d5 {[%clk 0:02:59]} 2. b3 {[%clk 0:02:55]}  Nf6 {[%clk 0:03:00]} 3. Bb2 {[%clk 0:02:54]}  e6 {[%clk 0:02:57]} 4. c4 {[%clk 0:02:52]}  Be7 {[%clk 0:02:55]} 5. e3 {[%clk 0:02:51]}  O-O {[%clk 0:02:54]} 6. Nc3 {[%clk 0:02:45]}  b6 {[%clk 0:02:52]} 7. cxd5 {[%clk 0:02:43]}  exd5 {[%clk 0:02:51]} 8. d4 {[%clk 0:02:43]}  Bb7 {[%clk 0:02:45]} 9. Bd3 {[%clk 0:02:42]}  Nbd7 {[%clk 0:02:46]} 10. O-O {[%clk 0:02:42]}  c5 {[%clk 0:02:43]} 11. Rc1 {[%clk 0:02:41]}  cxd4 {[%clk 0:02:42]} 12. Nxd4 {[%clk 0:02:41]}  Ne4 {[%clk 0:02:42]} 13. Nf5 {[%clk 0:02:28]}  Bf6 {[%clk 0:02:33]} 14. Qe2 {[%clk 0:02:01]}  Ndc5 {[%clk 0:02:25]} 15. Bxe4 {[%clk 0:01:45]}  dxe4 {[%clk 0:02:23]} 16. Rcd1 {[%clk 0:01:27]}  Nd3 {[%clk 0:02:22]} 17. Ba1 {[%clk 0:01:27]}  Rc8 {[%clk 0:02:19]} 18. Nb5 {[%clk 0:01:20]}  Bxa1 {[%clk 0:02:14]} 19. Rxa1 {[%clk 0:01:21]}  Ba6 {[%clk 0:02:12]} 20. Nbd6 {[%clk 0:01:05]}  Rc6 {[%clk 0:02:02]} 21. Qg4 {[%clk 0:00:47]}  Qf6 {[%clk 0:01:59]} 22. Nxe4 {[%clk 0:00:40]}  Qb2 {[%clk 0:00:56]} 23. Rfb1 {[%clk 0:00:24]}  Qe5 {[%clk 0:00:53]} 24. f4 {[%clk 0:00:24]}  Rg6 {[%clk 0:00:45]} 25. Qxg6 {[%clk 0:00:05]}  hxg6 {[%clk 0:00:46]} 26. fxe5 {[%clk 0:00:04]}  gxf5 {[%clk 0:00:47]} 27. Nd6 {[%clk 0:00:03]}  Nxe5 {[%clk 0:00:47]} 28. Rc1 {[%clk 0:00:03]}  Rd8 {[%clk 0:00:46]} 29. Nxf5 {[%clk 0:00:03]}  Rd2 {[%clk 0:00:42]} 30. Rd1 {[%clk 0:00:03]}  Rc2 {[%clk 0:00:39]} 31. Ne7+ {[%clk 0:00:02]}  Kh7 {[%clk 0:00:38]} 32. Rd4 {[%clk 0:00:02]}  g6 {[%clk 0:00:37]} 33. Rh4+ {[%clk 0:00:01]}  Kg7 {[%clk 0:00:37]} 34. Rd1 {[%clk 0:00:02]}  Bb7 {[%clk 0:00:37]} 35. g3 {[%clk 0:00:01]}  Nf3+ {[%clk 0:00:35]} 36. Kf1 {[%clk 0:00:00]}  Ba6+ {[%clk 0:00:32]} 0-1

[Event "December 19 Late 2023"]
[Site "https://www.chess.com"]
[Date "2023.12.19"]
[Round "11"]
[White "Tifferet, Shakked"]
[Black "Lopusiewicz, Piotr"]
[Result "1-0"]
[Board "60"]
[TimeControl "180+1"]
[WhiteFideId "2811529"]
[BlackFideId "1116029"]
[WhiteElo "2142"]
[BlackElo "2286"]
[WhiteTeam "ISR"]
[BlackTeam "POL"]
[WhiteClock "0:00:25"]
[BlackClock "0:00:04"]

1. d4 {[%clk 0:03:00]}  Nf6 {[%clk 0:02:59]} 2. Nc3 {[%clk 0:03:01]}  d5 {[%clk 0:02:59]} 3. Bf4 {[%clk 0:03:02]}  c5 {[%clk 0:02:55]} 4. e3 {[%clk 0:03:02]}  cxd4 {[%clk 0:02:55]} 5. exd4 {[%clk 0:03:03]}  a6 {[%clk 0:02:55]} 6. Nf3 {[%clk 0:03:02]}  Nc6 {[%clk 0:02:55]} 7. Ne5 {[%clk 0:03:01]}  Qb6 {[%clk 0:02:48]} 8. Nxc6 {[%clk 0:02:57]}  bxc6 {[%clk 0:02:46]} 9. Na4 {[%clk 0:02:55]}  Qa5+ {[%clk 0:02:35]} 10. c3 {[%clk 0:02:55]}  Bg4 {[%clk 0:02:29]} 11. f3 {[%clk 0:02:54]}  Bf5 {[%clk 0:02:20]} 12. Qb3 {[%clk 0:02:54]}  Nd7 {[%clk 0:02:12]} 13. Qb7 {[%clk 0:02:50]}  Qd8 {[%clk 0:01:43]} 14. Bxa6 {[%clk 0:02:34]}  e5 {[%clk 0:01:17]} 15. dxe5 {[%clk 0:02:21]}  Be7 {[%clk 0:01:14]} 16. Qxc6 {[%clk 0:02:16]}  O-O {[%clk 0:01:11]} 17. Bb7 {[%clk 0:01:59]}  Rxa4 {[%clk 0:00:57]} 18. Qxa4 {[%clk 0:01:58]}  Nc5 {[%clk 0:00:58]} 19. Qc6 {[%clk 0:01:30]}  Nd3+ {[%clk 0:00:53]} 20. Kd2 {[%clk 0:01:31]}  Nxf4 {[%clk 0:00:52]} 21. g3 {[%clk 0:01:29]}  Bd7 {[%clk 0:00:46]} 22. Qa6 {[%clk 0:01:24]}  Ne6 {[%clk 0:00:45]} 23. b4 {[%clk 0:01:14]}  d4 {[%clk 0:00:42]} 24. cxd4 {[%clk 0:01:07]}  Bxb4+ {[%clk 0:00:27]} 25. Ke3 {[%clk 0:01:07]}  Nxd4 {[%clk 0:00:22]} 26. Rad1 {[%clk 0:01:03]}  Bc5 {[%clk 0:00:17]} 27. Kf2 {[%clk 0:00:56]}  Qc7 {[%clk 0:00:12]} 28. Kg2 {[%clk 0:00:56]}  Qxe5 {[%clk 0:00:11]} 29. Be4 {[%clk 0:00:55]}  Be6 {[%clk 0:00:07]} 30. Rhe1 {[%clk 0:00:53]}  Qf6 {[%clk 0:00:07]} 31. h4 {[%clk 0:00:49]}  h6 {[%clk 0:00:06]} 32. Rd2 {[%clk 0:00:47]}  Bc8 {[%clk 0:00:04]} 33. Qxf6 {[%clk 0:00:44]}  gxf6 {[%clk 0:00:03]} 34. Rc1 {[%clk 0:00:45]}  Ba7 {[%clk 0:00:01]} 35. Rc4 {[%clk 0:00:45]}  Ne6 {[%clk 0:00:01]} 36. Rd5 {[%clk 0:00:39]}  Be3 {[%clk 0:00:01]} 37. Rc3 {[%clk 0:00:37]}  Bb7 {[%clk 0:00:01]} 38. Rxe3 {[%clk 0:00:35]}  Bxd5 {[%clk 0:00:01]} 39. Bxd5 {[%clk 0:00:36]}  Rd8 {[%clk 0:00:01]} 40. Bxe6 {[%clk 0:00:27]}  fxe6 {[%clk 0:00:02]} 41. Rxe6 {[%clk 0:00:27]}  Rd2+ {[%clk 0:00:03]} 42. Kh3 {[%clk 0:00:27]}  Rxa2 {[%clk 0:00:04]} 43. Rxf6 {[%clk 0:00:28]}  Kg7 {[%clk 0:00:05]} 44. Rf4 {[%clk 0:00:28]}  Ra3 {[%clk 0:00:05]} 45. h5 {[%clk 0:00:26]}  Ra4 {[%clk 0:00:04]} 46. Rxa4 {[%clk 0:00:25]} 1-0

[Event "December 19 Late 2023"]
[Site "https://www.chess.com"]
[Date "2023.12.19"]
[Round "11"]
[White "Smith, Garrett L"]
[Black "Osmak, Yuliia"]
[Result "0-1"]
[Board "64"]
[TimeControl "180+1"]
[WhiteFideId "2024829"]
[BlackFideId "14101602"]
[WhiteElo "2392"]
[BlackElo "2303"]
[WhiteTeam "USA"]
[BlackTeam "UKR"]
[WhiteClock "0:00:05"]
[BlackClock "0:00:05"]

1. e4 {[%clk 0:03:00]}  e5 {[%clk 0:02:57]} 2. Nf3 {[%clk 0:03:00]}  Nc6 {[%clk 0:02:57]} 3. Bc4 {[%clk 0:03:00]}  Nf6 {[%clk 0:02:56]} 4. Ng5 {[%clk 0:03:00]}  d5 {[%clk 0:02:55]} 5. exd5 {[%clk 0:03:01]}  Na5 {[%clk 0:02:54]} 6. Bb5+ {[%clk 0:03:01]}  c6 {[%clk 0:02:55]} 7. dxc6 {[%clk 0:03:02]}  bxc6 {[%clk 0:02:55]} 8. Bd3 {[%clk 0:03:03]}  Bd6 {[%clk 0:02:47]} 9. O-O {[%clk 0:02:59]}  O-O {[%clk 0:02:45]} 10. Re1 {[%clk 0:02:46]}  h6 {[%clk 0:02:41]} 11. Ne4 {[%clk 0:02:37]}  Nxe4 {[%clk 0:02:39]} 12. Bxe4 {[%clk 0:02:38]}  f5 {[%clk 0:02:39]} 13. Bd3 {[%clk 0:02:38]}  Rb8 {[%clk 0:02:22]} 14. Bf1 {[%clk 0:02:36]}  f4 {[%clk 0:02:02]} 15. b3 {[%clk 0:02:28]}  f3 {[%clk 0:02:01]} 16. g3 {[%clk 0:02:28]}  Bg4 {[%clk 0:01:48]} 17. Nc3 {[%clk 0:02:21]}  Qc8 {[%clk 0:01:43]} 18. Ne4 {[%clk 0:02:17]}  Be7 {[%clk 0:01:36]} 19. Re3 {[%clk 0:02:13]}  Qf5 {[%clk 0:01:20]} 20. Bb2 {[%clk 0:02:00]}  Rb4 {[%clk 0:01:13]} 21. c4 {[%clk 0:01:56]}  Rbb8 {[%clk 0:00:59]} 22. c5 {[%clk 0:01:45]}  Rb4 {[%clk 0:00:55]} 23. Bc3 {[%clk 0:01:33]}  Rxe4 {[%clk 0:00:53]} 24. Bd3 {[%clk 0:01:30]}  Qh5 {[%clk 0:00:38]} 25. Bxe4 {[%clk 0:01:29]}  Nb7 {[%clk 0:00:23]} 26. b4 {[%clk 0:01:25]}  Bg5 {[%clk 0:00:20]} 27. Rd3 {[%clk 0:01:20]}  Nd8 {[%clk 0:00:14]} 28. b5 {[%clk 0:01:08]}  cxb5 {[%clk 0:00:13]} 29. c6 {[%clk 0:01:07]}  Ne6 {[%clk 0:00:12]} 30. Bd5 {[%clk 0:01:04]}  Kh8 {[%clk 0:00:12]} 31. Rc1 {[%clk 0:00:51]}  Nc5 {[%clk 0:00:10]} 32. Bb4 {[%clk 0:00:23]}  Nxd3 {[%clk 0:00:10]} 33. Bxf8 {[%clk 0:00:23]}  Qh3 {[%clk 0:00:10]} 34. Qf1 {[%clk 0:00:22]}  Nxc1 {[%clk 0:00:08]} 35. Qxh3 {[%clk 0:00:18]}  Bxh3 {[%clk 0:00:09]} 36. Bf7 {[%clk 0:00:13]}  Bc8 {[%clk 0:00:09]} 37. Be8 {[%clk 0:00:13]}  Bd8 {[%clk 0:00:07]} 38. Bd6 {[%clk 0:00:12]}  Nd3 {[%clk 0:00:06]} 39. c7 {[%clk 0:00:09]}  Bf6 {[%clk 0:00:05]} 40. h3 {[%clk 0:00:08]}  e4 {[%clk 0:00:05]} 41. g4 {[%clk 0:00:08]}  Be5 {[%clk 0:00:04]} 42. Bxe5 {[%clk 0:00:05]}  Nxe5 {[%clk 0:00:05]} 0-1

[Event "December 19 Late 2023"]
[Site "https://www.chess.com"]
[Date "2023.12.19"]
[Round "11"]
[White "Kotlyar, Kirill"]
[Black "Skibbe, Willi"]
[Result "0-1"]
[Board "65"]
[TimeControl "180+1"]
[WhiteFideId "24145599"]
[BlackFideId "4682190"]
[WhiteElo "2397"]
[BlackElo "2390"]
[WhiteTeam "RUS"]
[BlackTeam "GER"]
[WhiteClock "0:00:12"]
[BlackClock "0:00:17"]

1. e4 {[%clk 0:02:57]}  e5 {[%clk 0:02:59]} 2. Nf3 {[%clk 0:02:57]}  Nc6 {[%clk 0:02:59]} 3. Bb5 {[%clk 0:02:57]}  a6 {[%clk 0:02:59]} 4. Ba4 {[%clk 0:02:57]}  Nf6 {[%clk 0:02:59]} 5. O-O {[%clk 0:02:57]}  Be7 {[%clk 0:02:59]} 6. Re1 {[%clk 0:02:56]}  b5 {[%clk 0:02:58]} 7. Bb3 {[%clk 0:02:57]}  d6 {[%clk 0:02:58]} 8. h3 {[%clk 0:02:56]}  O-O {[%clk 0:02:56]} 9. c3 {[%clk 0:02:56]}  Nb8 {[%clk 0:02:56]} 10. d4 {[%clk 0:02:55]}  Nbd7 {[%clk 0:02:55]} 11. Bc2 {[%clk 0:02:52]}  Bb7 {[%clk 0:02:54]} 12. d5 {[%clk 0:02:52]}  c6 {[%clk 0:02:52]} 13. dxc6 {[%clk 0:02:43]}  Bxc6 {[%clk 0:02:51]} 14. Nbd2 {[%clk 0:02:41]}  Nc5 {[%clk 0:02:50]} 15. b4 {[%clk 0:02:35]}  Ne6 {[%clk 0:02:48]} 16. Nf1 {[%clk 0:02:36]}  Qc7 {[%clk 0:02:42]} 17. Ng3 {[%clk 0:02:34]}  g6 {[%clk 0:02:37]} 18. Be3 {[%clk 0:02:20]}  Rfd8 {[%clk 0:02:33]} 19. Rc1 {[%clk 0:02:11]}  d5 {[%clk 0:02:33]} 20. exd5 {[%clk 0:02:02]}  Nxd5 {[%clk 0:02:32]} 21. Bd2 {[%clk 0:02:00]}  Nxc3 {[%clk 0:02:29]} 22. Bxc3 {[%clk 0:01:25]}  Rxd1 {[%clk 0:02:30]} 23. Bxd1 {[%clk 0:01:25]}  f6 {[%clk 0:02:14]} 24. Bb3 {[%clk 0:01:22]}  Kf7 {[%clk 0:02:06]} 25. Bxe5 {[%clk 0:01:17]}  fxe5 {[%clk 0:02:02]} 26. Nxe5+ {[%clk 0:01:18]}  Kf6 {[%clk 0:01:59]} 27. Rxc6 {[%clk 0:01:17]}  Qb7 {[%clk 0:01:54]} 28. Rxe6+ {[%clk 0:01:15]}  Kg7 {[%clk 0:01:54]} 29. Ng4 {[%clk 0:01:04]}  Bxb4 {[%clk 0:01:52]} 30. R1e4 {[%clk 0:01:00]}  Ba3 {[%clk 0:01:49]} 31. Nf6 {[%clk 0:00:58]}  Rf8 {[%clk 0:01:43]} 32. Ne8+ {[%clk 0:00:54]}  Kh6 {[%clk 0:01:34]} 33. R6e5 {[%clk 0:00:46]}  Rxe8 {[%clk 0:01:06]} 34. Rxe8 {[%clk 0:00:47]}  Bc5 {[%clk 0:01:04]} 35. Bg8 {[%clk 0:00:37]}  Kg7 {[%clk 0:01:02]} 36. Bb3 {[%clk 0:00:34]}  a5 {[%clk 0:01:02]} 37. a4 {[%clk 0:00:33]}  bxa4 {[%clk 0:00:56]} 38. Bxa4 {[%clk 0:00:34]}  Qb1+ {[%clk 0:00:55]} 39. Re1 {[%clk 0:00:32]}  Qa2 {[%clk 0:00:53]} 40. Bc6 {[%clk 0:00:16]}  Bxf2+ {[%clk 0:00:39]} 41. Kh2 {[%clk 0:00:16]}  Bxe1 {[%clk 0:00:40]} 42. Rxe1 {[%clk 0:00:16]}  Qc2 {[%clk 0:00:40]} 43. Re6 {[%clk 0:00:15]}  a4 {[%clk 0:00:39]} 44. Be4 {[%clk 0:00:13]}  Qc4 {[%clk 0:00:36]} 45. Re7+ {[%clk 0:00:13]}  Kf6 {[%clk 0:00:36]} 46. Ra7 {[%clk 0:00:14]}  h5 {[%clk 0:00:35]} 47. h4 {[%clk 0:00:13]}  Ke5 {[%clk 0:00:29]} 48. Ra5+ {[%clk 0:00:12]}  Kf4 {[%clk 0:00:27]} 49. Rg5 {[%clk 0:00:12]}  a3 {[%clk 0:00:24]} 50. Bd5 {[%clk 0:00:09]}  Qd3 {[%clk 0:00:17]} 51. Bg8 {[%clk 0:00:09]}  Qc2 {[%clk 0:00:13]} 52. Bf7 {[%clk 0:00:07]}  a2 {[%clk 0:00:13]} 53. Bxa2 {[%clk 0:00:08]}  Qxa2 {[%clk 0:00:13]} 54. Rxg6 {[%clk 0:00:09]}  Qc2 {[%clk 0:00:12]} 55. Rg5 {[%clk 0:00:09]}  Qd1 {[%clk 0:00:12]} 56. Rxh5 {[%clk 0:00:08]}  Qg4 {[%clk 0:00:13]} 57. Rg5 {[%clk 0:00:08]}  Qxh4+ {[%clk 0:00:13]} 58. Kg1 {[%clk 0:00:07]}  Qxg5 {[%clk 0:00:13]} 59. Nf1 {[%clk 0:00:07]}  Qc5+ {[%clk 0:00:12]} 60. Kh2 {[%clk 0:00:07]}  Kg4 {[%clk 0:00:13]} 61. Nd2 {[%clk 0:00:07]}  Qd6+ {[%clk 0:00:13]} 62. Kh1 {[%clk 0:00:07]}  Qxd2 {[%clk 0:00:13]} 63. g3 {[%clk 0:00:07]}  Qe1+ {[%clk 0:00:14]} 64. Kh2 {[%clk 0:00:08]}  Qxg3+ {[%clk 0:00:14]} 65. Kh1 {[%clk 0:00:08]}  Qh3+ {[%clk 0:00:15]} 66. Kg1 {[%clk 0:00:09]}  Qa3 {[%clk 0:00:16]} 67. Kf1 {[%clk 0:00:10]}  Qa2 {[%clk 0:00:16]} 68. Kg1 {[%clk 0:00:11]}  Kf3 {[%clk 0:00:17]} 69. Kh1 {[%clk 0:00:12]}  Qg2# {[%clk 0:00:17]} 0-1

[Event "December 19 Late 2023"]
[Site "https://www.chess.com"]
[Date "2023.12.19"]
[Round "11"]
[White "Polster, Christian"]
[Black "Shapiro, Viktor"]
[Result "1-0"]
[Board "66"]
[TimeControl "180+1"]
[WhiteFideId "12965081"]
[BlackFideId "4175700"]
[WhiteElo "2141"]
[BlackElo "2044"]
[WhiteTeam "GER"]
[BlackTeam "RUS"]
[WhiteClock "0:00:07"]
[BlackClock "0:00:54"]

1. d4 {[%clk 0:03:00]}  Nf6 {[%clk 0:03:00]} 2. c4 {[%clk 0:03:00]}  c5 {[%clk 0:03:00]} 3. d5 {[%clk 0:03:00]}  e6 {[%clk 0:03:01]} 4. Nc3 {[%clk 0:02:59]}  exd5 {[%clk 0:03:02]} 5. cxd5 {[%clk 0:03:00]}  d6 {[%clk 0:03:02]} 6. e4 {[%clk 0:03:00]}  g6 {[%clk 0:03:03]} 7. Nf3 {[%clk 0:02:42]}  Bg7 {[%clk 0:03:03]} 8. Bd3 {[%clk 0:02:31]}  O-O {[%clk 0:03:03]} 9. O-O {[%clk 0:02:31]}  a6 {[%clk 0:03:01]} 10. a4 {[%clk 0:02:31]}  Bg4 {[%clk 0:03:01]} 11. h3 {[%clk 0:02:29]}  Bxf3 {[%clk 0:03:01]} 12. Qxf3 {[%clk 0:02:30]}  Nbd7 {[%clk 0:03:02]} 13. Qe2 {[%clk 0:02:17]}  Re8 {[%clk 0:03:01]} 14. Qc2 {[%clk 0:01:57]}  c4 {[%clk 0:02:54]} 15. Bxc4 {[%clk 0:01:49]}  Rc8 {[%clk 0:02:54]} 16. Bd3 {[%clk 0:01:44]}  Nc5 {[%clk 0:02:54]} 17. f3 {[%clk 0:01:26]}  Qb6 {[%clk 0:02:42]} 18. Be3 {[%clk 0:01:07]}  Qb4 {[%clk 0:02:30]} 19. Rf2 {[%clk 0:00:30]}  Nfd7 {[%clk 0:02:18]} 20. Bf1 {[%clk 0:00:24]}  Nb3 {[%clk 0:02:13]} 21. Rd1 {[%clk 0:00:13]}  Ndc5 {[%clk 0:02:10]} 22. Kh1 {[%clk 0:00:07]}  Nxa4 {[%clk 0:02:05]} 23. Bf4 {[%clk 0:00:02]}  Nxc3 {[%clk 0:01:54]} 24. bxc3 {[%clk 0:00:02]}  Rxc3 {[%clk 0:01:54]} 25. Qb1 {[%clk 0:00:03]}  Qc5 {[%clk 0:01:50]} 26. Rb2 {[%clk 0:00:02]}  Na5 {[%clk 0:01:25]} 27. Bd2 {[%clk 0:00:03]}  Ra3 {[%clk 0:01:21]} 28. Bb4 {[%clk 0:00:03]}  Bxb2 {[%clk 0:01:16]} 29. Bxc5 {[%clk 0:00:03]}  dxc5 {[%clk 0:01:16]} 30. Qxb2 {[%clk 0:00:03]}  Rb3 {[%clk 0:01:15]} 31. Qa2 {[%clk 0:00:02]}  b6 {[%clk 0:01:13]} 32. Bxa6 {[%clk 0:00:02]}  Rd8 {[%clk 0:01:13]} 33. d6 {[%clk 0:00:02]}  Re3 {[%clk 0:01:12]} 34. d7 {[%clk 0:00:02]}  Nc6 {[%clk 0:01:11]} 35. Bc8 {[%clk 0:00:02]}  Nd4 {[%clk 0:01:09]} 36. Qd5 {[%clk 0:00:03]}  Ra3 {[%clk 0:01:07]} 37. Qe5 {[%clk 0:00:02]}  Ra7 {[%clk 0:01:05]} 38. Qe7 {[%clk 0:00:02]}  Nc6 {[%clk 0:01:05]} 39. Qd6 {[%clk 0:00:01]}  Nb4 {[%clk 0:01:02]} 40. Qxb6 {[%clk 0:00:02]}  Raxd7 {[%clk 0:00:57]} 41. Bxd7 {[%clk 0:00:03]}  Rf8 {[%clk 0:00:56]} 42. Qxc5 {[%clk 0:00:03]}  Na6 {[%clk 0:00:56]} 43. Qc6 {[%clk 0:00:03]}  Nb8 {[%clk 0:00:56]} 44. Qd6 {[%clk 0:00:04]}  Rd8 {[%clk 0:00:55]} 45. Qc7 {[%clk 0:00:04]}  Rf8 {[%clk 0:00:55]} 46. Bb5 {[%clk 0:00:04]}  h5 {[%clk 0:00:55]} 47. Rd8 {[%clk 0:00:05]}  Rxd8 {[%clk 0:00:52]} 48. Qxd8+ {[%clk 0:00:06]}  Kg7 {[%clk 0:00:53]} 49. Qxb8 {[%clk 0:00:06]}  Kf6 {[%clk 0:00:54]} 50. Qd6+ {[%clk 0:00:06]}  Kg5 {[%clk 0:00:54]} 51. Qe5+ {[%clk 0:00:07]}  Kh4 {[%clk 0:00:54]} 52. Qf4# {[%clk 0:00:07]} 1-0